Cogmind - Beta 15 @@@ ROGUE MODE // 2025.08.11 @ 03:36:06 // Winter2019/RPGLIKE Player: bugsniper Result: Destroyed by 1G-KF4(E) with Overtuned Barrage Gun Performance ------------- Evolutions (0) 0 Regions Visited (4) 800 Robots Destroyed (36) 180 Value Destroyed (835) 835 Prototype IDs (18) 360 Alien Tech Used (0) 0 Bonus (731) 731 TOTAL SCORE: 2906 Bonus ------- Follower Combat Kills 63 Registered with UFD 300 Met Optimus in HQ 500 Friendly Fire -132 Cogmind --------- Core Integrity 0/600 Matter 240/300 Energy 430/430 System Corruption 28% Temperature Cool (16) Movement Treading (160) Location -9/Scraptown Parts ------- > --- POWER (2) -------- Improved Ion Engine Improved Ion Engine > --- PROPULSION (3) --- Improved Treads Spiked Treads Medium Treads > --- UTILITY (3) ------ Advanced Sensor Array Light Armor Plating Reactive Plating > --- WEAPON (3) ------- Rocket Launcher System Spiker Companion Sword > --- INVENTORY (2) ---- Coil Gun Improved Proton Missile Launcher Peak State ------------ > --- POWER ------------ Improved Ion Engine Improved Ion Engine > --- PROPULSION ------- Improved Treads Spiked Treads Medium Treads > --- UTILITY ---------- Advanced Sensor Array Light Armor Plating Reactive Plating > --- WEAPON ----------- Rocket Launcher System Spiker Companion Sword > --- INVENTORY -------- Coil Gun Improved Proton Missile Launcher [Rating: 40] Favorites ----------- Power Light Ion Engine Engine Light Ion Engine Power Core Light Nuclear Core Propulsion Light Treads Treads Light Treads Leg Aluminum Leg Wheel Compact Wheel Utility Light Armor Plating Device Tractor Beam Storage Medium Battery Protection Light Armor Plating Weapon Grenade Launcher Energy Gun Subdweller Laser Energy Cannon Beam Cannon Ballistic Gun Coil Gun Ballistic Cannon Light Cannon Launcher Grenade Launcher Special Weapon System Spiker Impact Weapon Makeshift Hammer Slashing Weapon Companion Sword Build | -11 -10 -10 -10 -9 ------- Run | Yrd Mat Min Sub Scr Slots Evolved 7 | . 4 2 . 1 Power 1 | . 1 . . . Propulsion 2 | . 1 . . 1 Utility 2 | . 1 1 . . Weapon 2 | . 1 1 . . Parts Attached 38 | . 10 5 8 15 Power 9 | . 3 . 3 3 Engine 8 | . 2 . 3 3 Core 1 | . 1 . . . Reactor . | . . . . . Propulsion 6 | . 1 2 . 3 Treads 4 | . . 1 . 3 Leg 1 | . . 1 . . Wheel 1 | . 1 . . . Hover . | . . . . . Flight . | . . . . . Utility 8 | . 3 1 2 2 Device 3 | . 2 . . 1 Storage 1 | . 1 . . . Processor . | . . . . . Hackware . | . . . . . Protection 4 | . . 1 2 1 Artifact . | . . . . . Weapon 15 | . 3 2 3 7 Energy Gun 3 | . 1 . 2 . Energy Cannon 3 | . . 1 1 1 Ballistic Gun 1 | . . . . 1 Ballistic Cannon 2 | . . 1 . 1 Launcher 3 | . 2 . . 1 Special Weapon 1 | . . . . 1 Impact Weapon 1 | . . . . 1 Slashing Weapon 1 | . . . . 1 Piercing Weapon . | . . . . . Special Melee Weapon . | . . . . . Unidentified Prototypes 1 | . . . . 1 Parts Lost . | . . . . . Power . | . . . . . Propulsion . | . . . . . Utility . | . . . . . Weapon . | . . . . . Highest Loss Streak . | . . . . . To Critical Strikes . | . . . . . Average Backups 1 | . . . 1 1 Power . | . . . . . Propulsion . | . . . . . Utility . | . . . . . Weapon 1 | . . . 1 1 Tool/Special . | . . . . . Unused Backups 8 | . 2 . 2 4 Power 2 | . 1 . 1 . Propulsion 1 | . 1 . . . Utility 2 | . . . 1 1 Weapon 3 | . . . . 3 Tool/Special . | . . . . . Average Slot Usage (%) 96 | . 95 99 98 92 Engine 20 | . 23 21 19 19 Treads 12 | . . 6 10 19 Leg 6 | . 17 10 10 . Device 13 | . 15 21 17 3 Protection 12 | . . 5 11 18 Energy Gun 6 | . 16 7 9 2 Energy Cannon 1 | . . 2 . . Ballistic Gun 2 | . . . . 6 Ballistic Cannon 2 | . . 5 1 2 Launcher 15 | . 12 12 18 13 Impact Weapon 1 | . . . . 2 Peak Build Rating 40 | . 10 10 15 40 Average Rating 15 | . 6 9 11 23 On Entrance 7 | 3 3 8 10 15 Naked Turns . | . . . . . Heaviest Build 43 | 5 14 20 41 43 Greatest Support 71 | 10 16 20 20 71 Greatest Overweight (x) 2 | . . 1 2 2 Average Overweight (x) . | . . . 1 . Largest Inventory Capacity 2 | . 1 1 2 2 Average Capacity 1 | . . 1 1 2 Most Carried 2 | . 1 1 2 2 Average Carried 1 | . . . 1 1 Final Capacity 2 | . 1 1 2 2 Final Carried 2 | . 1 1 2 2 Class Distribution -------------------- 52% | Bomber 24% | Subdweller-Bomber 11% | Mutant 6% | Derelict-Mutant 3% | Subdweller-Mutant Dominant Class ---------------- Mutant | -10/Materials Bomber | -10/Mines Bomber | -10/Subcaves Subdweller-Bomber | -9/Scraptown Resources | -11 -10 -10 -10 -9 ----------- Run | Yrd Mat Min Sub Scr Matter Collected 1284 | 200 210 180 594 100 Remotely 914 | . 210 180 524 . Salvage Created 1011 | . 192 323 320 176 Parts 62 | . 20 10 30 2 Haulers Intercepted . | . . . . . Recyclers Shooed 2 | . . 2 . . Parts Field Recycled . | . . . . . Retrieved Matter . | . . . . . Parts Self-Destructed 16 | . . . 16 . Prevented . | . . . . . Kills | -11 -10 -10 -10 -9 ------- Run | Yrd Mat Min Sub Scr Combat Hostiles Destroyed 29 | . 8 6 13 2 Guns 1 | . . 1 . . AOE 28 | . 8 5 13 2 Classes Destroyed 9 | . 5 1 1 2 Worker 1 | . 1 . . . Builder 2 | . 2 . . . Recycler 3 | . 1 2 . . Swarmer 11 | . 6 3 2 . Grunt 5 | . 2 2 1 . Sentry 2 | . . 1 1 . Subdweller 9 | . . . 9 . Bolteater 2 | . . . . 2 Scientist 1 | . . . . 1 Thug 1 | . . . 1 . Best Kill Streak 11 | . 11 3 2 3 Combat Bots Only 8 | . 8 3 2 2 Max Kills in Single Turn 3 | . 3 2 2 3 Gunslinging . | . . . . . Exploded 3 | . 3 2 2 2 Melee . | . . . . . Uniques/NPCs Destroyed . | . . . . . Combat | -11 -10 -10 -10 -9 -------- Run | Yrd Mat Min Sub Scr Hostile Shots Fired 93 | . 8 19 40 26 Missed 27 | . 1 4 14 8 Hits 66 | . 7 15 26 18 Melee 3 | . . . . 3 Projectile 63 | . 7 15 26 15 Critical Strikes 3 | . . 1 2 . Damage Taken 1429 | . 111 225 620 473 Core 1039 | . 85 177 438 339 Absorbed by Shields . | . . . . . Redirected to Core 842 | . 85 137 378 242 Ignored by Resistances 130 | . . . 51 79 Regen/Repaired (Parts) 332 | . . . . 332 Core Remaining (%) 100 | 100 . . . . Volleys Fired 88 | . 11 30 46 1 Largest 3 | . 2 2 3 1 Hottest 150 | . 60 70 150 . Shots Fired 116 | . 13 33 69 1 Gun 26 | . 3 19 4 . Cannon 26 | . . 3 23 . Launcher 63 | . 10 11 42 . Special 1 | . . . . 1 Kinetic 14 | . . 3 11 . Thermal 16 | . . . 16 . Explosive 63 | . 10 11 42 . Electromagnetic 22 | . 3 19 . . Robot Hit Streak 32 | . 3 12 32 . Robot Miss Streak 1 | . 1 1 1 1 Penetration Max . | . . . . . Secondary Targets . | . . . . . Shots Hit Robots 61 | . 4 15 41 1 Core Hits 55 | . 17 14 23 1 Critical Kills . | . . . . . Critical Parts Destroyed . | . . . . . Critical Strikes . | . . . . . Melee Attacks 2 | . . . . 2 Impact . | . . . . . Slashing 2 | . . . . 2 Piercing . | . . . . . Sneak Attacks . | . . . . . Combat Hostiles . | . . . . . Follow-up Attacks . | . . . . . Damage Inflicted 3340 | . 620 544 1446 730 Guns 171 | . 15 138 18 . Cannons 143 | . . 55 88 . Explosions 2987 | . 605 347 1340 695 Melee 35 | . . . . 35 Ramming 4 | . . 4 . . Kinetic 90 | . . 55 35 . Thermal 71 | . . . 71 . Explosive 2292 | . 605 347 1340 . Electromagnetic 153 | . 15 138 . . Impact . | . . . . . Slashing 35 | . . . . 35 Piercing . | . . . . . Entropic 695 | . . . . 695 Highest Corruption 28 | . . . . 28 Average Corruption 28 | . . . . 28 Corruption Purged . | . . . . . Corruption Blocked . | . . . . . Overload Shots . | . . . . . Overflow Damage 135 | . 13 10 14 98 Projectiles 10 | . . 10 . . Explosions 125 | . 13 . 14 98 Melee . | . . . . . Knockbacks 2 | . . 1 1 . Impact . | . . . . . Kinetic 2 | . . 1 1 . Secondary . | . . . . . Self-Inflicted Damage 366 | . 47 . 177 142 Shots 13 | . 2 . 10 1 Rammed 1 | . . 1 . . Targets Rammed 2 | . . 2 . . Kicked 1 | . . 1 . . Crushed . | . . . . . Highest Temperature 77 | . 36 77 54 16 Average Temperature 25 | . 20 33 8 8 Received Heat Transfer 243 | . 6 90 111 36 Siege Activations . | . . . . . Martial Activations . | . . . . . Shielding Activations . | . . . . . Robots Disrupted . | . . . . . Combat Hostiles . | . . . . . Robots Corrupted . | . . . . . Combat Hostiles . | . . . . . Parts Fried . | . . . . . Impact Corruptions . | . . . . . Robots Melted . | . . . . . Combat Hostiles . | . . . . . Parts Melted 1 | . . 1 . . Heat Transferred 136 | . . . 136 . Parts Sabotaged . | . . . . . Parts Stolen . | . . . . . Parts Stripped . | . . . . . Power Chain Reactions . | . . . . . Alert | -11 -10 -10 -10 -9 ------- Run | Yrd Mat Min Sub Scr Maximum Alert Level 1 | . 1 . . . Low Security (%) 95 | . 74 100 . . Level 1 4 | . 25 . . . Level 2 . | . . . . . Level 3 . | . . . . . Level 4 . | . . . . . Level 5 . | . . . . . High Security . | . . . . . Max Security . | . . . . . Peak Influence 236 | . 236 163 . . Initial 79 | . . 79 . . Average 42 | . 76 35 . . Influence Increases 608 | . 286 242 80 . Destroy 0b10 Robot/C 380 | . 160 140 80 . Destroy 0b10 Robot/NC 30 | . 20 10 . . Destroy Leader 50 | . 30 20 . . Allied During Kill 18 | . . 18 . . Successful Hack 14 | . 14 . . . Disable Machine 45 | . 30 15 . . Destroy Structure 71 | . 32 39 . . Influence Decreases 608 | . 80 448 51 29 Entered New Map 156 | . . 127 . 29 Time Decay 452 | . 80 321 51 . Squads Dispatched 1 | . 1 . . . Investigation 1 | . 1 . . . Extermination . | . . . . . Reinforcement . | . . . . . Assault . | . . . . . Garrison . | . . . . . Intercept . | . . . . . Searches Triggered . | . . . . . Construction Impeded . | . . . . . Haulers Reinforced . | . . . . . Active Scanning Responses . | . . . . . Cargo Convoy Interrupts . | . . . . . Stealth | -11 -10 -10 -10 -9 --------- Run | Yrd Mat Min Sub Scr Distress Signals 1 | . 1 . . . Communications Jammed . | . . . . . Distress Signals . | . . . . . Times Spotted 40 | . 9 6 13 12 Peak Tracking Total 18 | . 4 3 2 18 Tactical Retreats . | . . . . . Traps | -11 -10 -10 -10 -9 ------- Run | Yrd Mat Min Sub Scr Traps Triggered 1 | . . . . 1 Indirectly . | . . . . . Trap Hack Attempts . | . . . . . Triggered . | . . . . . Disarmed . | . . . . . Reprogrammed . | . . . . . Reused . | . . . . . Traps Extracted . | . . . . . Installed 1 | . . . . 1 Triggered . | . . . . . Most Traps Carried 1 | . . 1 . 1 Machines | -11 -10 -10 -10 -9 ---------- Run | Yrd Mat Min Sub Scr Machines Disabled 9 | . 2 2 1 4 Max in Single Turn 3 | . 1 1 1 3 Machines Repaired . | . . . . . Machines Dismantled . | . . . . . Machines Sabotaged . | . . . . . Overloaded Fab Kills . | . . . . . Hacking | -11 -10 -10 -10 -9 --------- Run | Yrd Mat Min Sub Scr Machines Accessed 6 | . 2 . 1 3 Terminals 2 | . 2 . . . Fabricators . | . . . . . Repair Stations . | . . . . . Recycling Units . | . . . . . Scanalyzers . | . . . . . Garrison Access . | . . . . . Total Hacks 20 | . 6 . 9 5 Successful 15 | . 1 . 9 5 Failed 5 | . 5 . . . Catastrophic 1 | . 1 . . . Database Lockouts . | . . . . . Manual . | . . . . . Terminals 6 | . 6 . . . Fabricators . | . . . . . Repair Stations . | . . . . . Recycling Units . | . . . . . Scanalyzers . | . . . . . Garrison Access . | . . . . . Terminal Hacks 15 | . 1 . 9 5 Record 11 | . . . 8 3 Open Door 1 | . . . . 1 Zone Layout 1 | . 1 . . . Proto ID Catalog 2 | . . . 1 1 Fabricator Hacks . | . . . . . Repair Station Hacks . | . . . . . Recycling Unit Hacks . | . . . . . Scanalyzer . | . . . . . Garrison Access Hacks . | . . . . . Unauthorized Hacks . | . . . . . Terminals . | . . . . . Fabricators . | . . . . . Repair Stations . | . . . . . Recycling Units . | . . . . . Scanalyzers . | . . . . . Garrison Access . | . . . . . Data Cores Recovered . | . . . . . Used . | . . . . . Hacking Detections 2 | . 2 . . . Full Trace Events 1 | . 1 . . . Feedback Events . | . . . . . Feedback Blocked . | . . . . . Robot Schematics Acquired . | . . . . . Robots Built . | . . . . . Authchips . | . . . . . Time . | . . . . . Total Robot Build Rating . | . . . . . Part Schematics Acquired . | . . . . . Parts Built . | . . . . . Authchips . | . . . . . Time . | . . . . . Total Part Build Rating . | . . . . . Parts Repaired . | . . . . . Time . | . . . . . Parts Recycled . | . . . . . Recycled Matter . | . . . . . Retrieved Matter . | . . . . . Retrieved Components . | . . . . . Parts Scanalyzed . | . . . . . Part Schematics Acquired . | . . . . . Parts Damaged . | . . . . . Bothacking | -11 -10 -10 -10 -9 ------------ Run | Yrd Mat Min Sub Scr Used RIF Installer . | . . . . . Robots Hacked . | . . . . . Non-combat . | . . . . . Combat . | . . . . . Robot Hacks Applied . | . . . . . Relay Couplers Released . | . . . . . Fabnet Peak Effective % . | . . . . . Robots Rewired . | . . . . . Allies Hacked . | . . . . . Hacks Repelled . | . . . . . Allies | -11 -10 -10 -10 -9 -------- Run | Yrd Mat Min Sub Scr Total Allies 2 | . . 2 . . Largest Group 2 | . . 2 2 . Highest-Rated Group 50 | . . 50 50 . Highest-Rated Ally 31 | . . 31 31 . Total Orders . | . . . . . Ally Attacks 28 | . . 15 13 . Total Damage 309 | . . 169 140 . Kills 2 | . . 1 1 . Allies Corrupted . | . . . . . Allies Melted . | . . . . . Intel | -11 -10 -10 -10 -9 ------- Run | Yrd Mat Min Sub Scr Active Infowar (turns) 4523 | . 29 1139 3308 47 Sensors 47 | . . . . 47 Structural 4476 | . 29 1139 3308 . Robot Analysis Total . | . . . . . Derelict Logs Recovered 5 | . . 1 1 3 Drone Launches . | . . . . . Drone Recoveries . | . . . . . Exploration | -11 -10 -10 -10 -9 ------------- Run | Yrd Mat Min Sub Scr Turns Passed 7795 | . 228 1139 3706 2722 Spaces Moved 3948 | 1 163 673 1471 1640 Core . | . . . . . Treads 3515 | . . 404 1471 1640 Legs 245 | 1 87 157 . . Wheels 188 | . 76 112 . . Hover . | . . . . . Flight . | . . . . . Fastest Speed 100 | 120 100 100 160 160 Average Speed 188 | 120 110 157 240 163 Slowest Speed 320 | 120 120 190 320 320 Overloaded Moves . | . . . . . Propulsion Burnouts . | . . . . . Robots Hopped . | . . . . . Potential Cave-ins . | . . . . . Cave-ins Triggered . | . . . . . Exploration Rate (%) 52 | 2 30 98 44 90 Regions Visited 4 Branch Regions 3 Pre-discovered Areas 3 | . . 1 . 2 Known Exits Taken . | . . . . . Unknown Exits Taken 4 | 1 1 1 1 . Scrap Searched 15 | . . 3 5 7 Spaces Dug 21 | . . . 21 . Terrain Destroyed 304 | . 47 66 172 19 Melee . | . . . . . Projectile . | . . . . . AOE 304 | . 47 66 172 19 Terrain Rammed . | . . . . . Walls Destroyed . | . . . . . Machines Disabled . | . . . . . Actions | -11 -10 -10 -10 -9 --------- Run | Yrd Mat Min Sub Scr Total 4176 | . 194 720 1578 1684 Wait 19 | . 2 4 13 . Move 3944 | . 162 672 1470 1640 Hop . | . . . . . Pick Up 16 | . 1 2 5 8 Fast Attach 27 | . 8 4 5 10 Attach 4 | . . 1 . 3 Detach 1 | . . . . 1 Swap 15 | . 3 1 8 3 Drop 35 | . 4 4 12 15 Fire 88 | . 11 30 46 1 Melee 2 | . . . . 2 Ram . | . . . . . Kick 1 | . . 1 . . Crush 1 | . . 1 . . Escape Stasis . | . . . . . Rewire . | . . . . . Trap 1 | . . . . 1 Miscellaneous 22 | . 3 . 19 . Route ------- -11/Scrapyard -10/Materials -10/Mines (discovered 4 exits: [*Mat x2] / [Exi] / *Sub) -10/Subcaves (discovered 2 exits: [*Mat] / *Scr) -9/Scraptown (discovered 1 exit: [*Fac]) History --------- Turn | Location | Event 1 | -11/Scrapyard | Discovered new exit (range 0) 1 | -11/Scrapyard | Entered Materials 44 | -10/Materials | Upgraded with Weapon slot (x1) 115 | -10/Materials | Upgraded with Propulsion slot (x1) 118 | -10/Materials | Upgraded with Utility slot (x1) 118 | -10/Materials | Upgraded with Power slot (x1) 167 | -10/Materials | Discovered new exit (range 16) 193 | -10/Materials | Destroyed 8 combat bots 229 | -10/Materials | Entered Mines 231 | -10/Mines | Reached level 2 256 | -10/Mines | Deemed a non-threat by the Exiles lab entrance 256 | -10/Mines | Discovered new exit (range 6) 316 | -10/Mines | Build established: Mutant 354 | -10/Mines | Discovered new exit (range 7) 459 | -10/Mines | Found a hidden stash of uninstalled traps 578 | -10/Mines | Upgraded with Weapon slot (x1) 759 | -10/Mines | Upgraded with Utility slot (x1) 913 | -10/Mines | Build established: Bomber 955 | -10/Mines | Discovered new exit (range 9) 1285 | -10/Mines | Discovered new exit (range 8) 1368 | -10/Mines | Entered Subcaves 1368 | -10/Subcaves | Accompanied by 2 allies 1369 | -10/Subcaves | Approached by a straggling Scientist 1370 | -10/Subcaves | Reached level 3 1373 | -10/Subcaves | Led the pair of lost Derelicts to an unsafe place 1420 | -10/Subcaves | Discovered new exit (range 13) 1823 | -10/Subcaves | Scientist uncovered a shortcut to Scraptown 1932 | -10/Subcaves | Learned Materials garrison access intel 1958 | -10/Subcaves | Visited 4L-MR0's lab 2082 | -10/Subcaves | Shifting Twisted Machinery released Sub. Laser 2117 | -10/Subcaves | Shifting Twisted Machinery released Mak. System Shield 2344 | -10/Subcaves | Core integrity fell below 50% 2999 | -10/Subcaves | Shifting Twisted Machinery released Shrapnel Trap 3226 | -10/Subcaves | A swath of the cavern ceiling suddenly collapsed 3648 | -10/Subcaves | Shifting Twisted Machinery released Mak. Hammer 4373 | -10/Subcaves | Disturbed a concealed Subdweller 4411 | -10/Subcaves | Disturbed a concealed Subdweller 4415 | -10/Subcaves | Disturbed a concealed Subdweller 4551 | -10/Subcaves | A swath of the cavern ceiling suddenly collapsed 4977 | -10/Subcaves | Build established: Subdweller-Bomber 5074 | -10/Subcaves | Entered Scraptown 5294 | -9/Scraptown | Received an X-ray algorithm 5412 | -9/Scraptown | Scanned Subdweller tech in exchange for log data 5417 | -9/Scraptown | Learned location of Extension (-6) 5419 | -9/Scraptown | Learned location of Testing (-3) 5420 | -9/Scraptown | Learned Research garrison access intel 5441 | -9/Scraptown | Discovered new exit (range 7) 5564 | -9/Scraptown | Visited SPCMW 5580 | -9/Scraptown | Visited Symbiants 5643 | -9/Scraptown | Visited Cyclists 6046 | -9/Scraptown | Visited CPS Storage 6141 | -9/Scraptown | Visited CR-KLE's Repair Center 6152 | -9/Scraptown | CR-KLE repaired 8 parts 6182 | -9/Scraptown | Visited UFD Registry 6227 | -9/Scraptown | Registered with UFD as "Hellstep" 6227 | -9/Scraptown | Reached level 4 6253 | -9/Scraptown | Visited Shadow of the Wyrm 6269 | -9/Scraptown | Visited Red Mages 6358 | -9/Scraptown | Entered Cyclist Reading Room 6724 | -9/Scraptown | Visited Junk Cannon Lab 6780 | -9/Scraptown | Visited Observation Area 6852 | -9/Scraptown | Visited Chapter 10 6910 | -9/Scraptown | Build established: Subdweller-Mutant 6911 | -9/Scraptown | Delivered Scrap Shield to a Scientist 7083 | -9/Scraptown | Visited LU-1G1's Boring Crew 7168 | -9/Scraptown | Visited Supply Room 7227 | -9/Scraptown | Build established: Mutant 7238 | -9/Scraptown | Visited DA-N13 Charitable Foundation 7245 | -9/Scraptown | Found DCF Scrap (27 items) 7311 | -9/Scraptown | Visited Science Guys 7399 | -9/Scraptown | Visited Sword Containment 7468 | -9/Scraptown | Visited Science Testing Area 7550 | -9/Scraptown | Build established: Derelict-Mutant 7692 | -9/Scraptown | Met Optimus 7692 | -9/Scraptown | Accepted into 0bPrime 7767 | -9/Scraptown | Upgraded with Propulsion slot (x1) 7780 | -9/Scraptown | Warned about trapping Scraptown 7780 | -9/Scraptown | Attacked by Scraptown defenders 7786 | -9/Scraptown | Found System Spiker 7794 | -9/Scraptown | Core integrity fell below 20% 7795 | -9/Scraptown | System corruption reached 10% 7796 | -9/Scraptown | Destroyed by 1G-KF4(E) with Overtuned Barrage Gun Last Messages --------------- 07789_ Slug penetrates Wall. 07792_ YQ-I08(r) follow-up attacks with Ripteeth. 07792_ Penetrated by Slug. 07793_ 08-2VB(j): "How dare you!" 07793_ Triggered Vortex Trap. 07793_ A wave of accelerated entropy washes over the area. 07793_ 1R-TLK(r) destroyed. 07793_ Destroyed Wheel. 07793_ Destroyed Ripteeth. 07793_ YQ-I08(r) destroyed. 07793_ SG-Prototypes Database disabled. 07793_ Destroyed Wheel. 07793_ 3L-RGN(c) destroyed. 07793_ Machine disabled. 07793_ Supplies damaged. 07794_ Penetrated by Slug. 07794_ Slug penetrates Earth. 07794_ SYS_ERR_328975498362890465 Map ----- +----------------------------------------------------+ | | | ?????????????????????????????????????????????????? | | ?????????????????????????????????????????????????? | | ?????????????????????????????????????????????????? | | ?????????????????????????????????????????????????? | | ?????????????????????????????????????????????????? | | ?????????????????????????????????????????????????? | | ?????????????????????????????????????????????????? | | ?????????????????????????????????????????????????? | | ?????????????????????????????????????????????????? | | ?????????????????????????????????????????????????? | | ?????????????????????????????????????????????????? | | ?????????????????????????????????????????????????? | | ?????????????????????????????????????????????????? | | ?????????????????????????????????????????????????? | | ?????????????????????????????????????????????????? | | ?????????????????????????????????????????????????? | | ?????????????????????????????????????????????????? | | ?????????????????????????????????????????????????? | | ??????????????????????#######????????????????????? | | ????????????????????### ###??????????????????? | | #######??????????# #;;;;;;;;;###????????????????? | | #??????????# # ""#????????????????? | | #??????????# ; "#????????????????? | | / #??##?????## E; "##???????????????? | | #??? ??? #; ; 3@% ; #?????????????? | | #??? """ ##E ; %% "##???????????????? | | #??? """ ## ; #????????????????? | | # #####??"" ?# # ! ""#????????????????? | | # X#### """ "?# c; "#????????????????? | | ## "## # " ""#????????????????? | | #?? ## #" #????????????????? | | #????"""""?#; # "#????????????????? | | #####?????# #?#;# ## ##########????????????????? | | ########### ##;## ##j##????????????????????????? | | """"""""""" " """ ""j"#########????????????????? | | pj"## ] #????????????????? | | j "## %* #????????????????? | | "## ! ] *#????????????????? | | "## *[ ###????????????????? | | =*=[[###????????????????? | | """""""""""""""""" "##!!|[!=#????????????????? | | """""""""""""""""" "##*![%=*#????????????????? | | ################"" "## !**=#????????????????? | | ##????????#"" "#########????????????????? | | X"#????????#"" "## ""]]#????????????????? | | "" ##????????#"" "## "" ]#????????????????? | | "" X"#??????###"" "## ] "#????????????????? | | " ######### #"" "## ""#????????????????? | | ""#????????????????? | +----------------------------------------------------+ Best States ------------- Heat Dissipation 25 Energy Generation 25 Energy Capacity 430 Matter Stores 300 Matter Capacity 300 Sight Range 16 Robot Scan Range 16 Terrain Scan Density 10 Armor Coverage 950 Resistance: KI 20 Resistance: TH 5 Resistance: EX 5 Evasion (%) 55 Recoil Reduction 3 Offensive Hacking 5 Defensive Hacking 5 Item Schematics ----------------- None Robot Schematics ------------------ None Fabricated ------------ Nothing Repaired ---------- Nothing Alien Tech Used ----------------- None Achievements -------------- None Challenges ------------ None RPGLIKE | -11 -10 -10 -10 -9 --------- Run | Yrd Mat Min Sub Scr Levels Raised 3 | . . 1 1 1 XP Earned 7876 | 3000 1170 1391 1415 900 XP Spent 6200 | . 2650 1800 950 800 Upgrades 15 | . 7 3 4 1 Power Slot 1 | . 1 . . . Propulsion Slot 2 | . 1 . . 1 Utility Slot 2 | . 1 1 . . Weapon Slot 2 | . 1 1 . . Inventory Capacity 2 | . 1 . 1 . Hack Attack % 1 | . 1 . . . Hack Defense % 1 | . 1 . . . KI Resistance % 1 | . . . 1 . TH Resistance % 1 | . . . 1 . EX Resistance % 1 | . . . 1 . EX Damage % 1 | . . 1 . . Protomatter Created 171 | . 35 2 134 . Integrity Restored 429 | . 60 . 369 . Core 429 | . 60 . 369 . Protomatter Decayed 156 | . . 53 103 . Game ------ Seed CryofiberSubdwellerSword Manual? 0 Play Time 00:41:02 Cumulative 437.2 hours Start 2025.08.11 @ 02:57:28 End 2025.08.11 @ 03:36:06 Sessions 1 Manual Loads 0 Difficulty Rogue Special Mode Winter2019/RPGLIKE Game No. 253 Rogue 253 Adventurer 0 Explorer 0 Win Type - Total 11 Types 10/0/1/0/0/0/0/0/0/0 Lore% 73 Gallery% 67 Achievement% 53 Wizard Run 0 Options --------- Layout 1 ASCII 0 Keyboard 0 Movement Numpad Keybinds 0 Fullscreen 1 Font 24/Smallcaps Map View 50x35 Zoom Use 0% Tactical HUD 1 Map Filters NONE Filters NONE Steam 1 RUN: dbb6753c-a3ec-48ec-8cfd-da248e679b3c